bitfinex-derivatives/quotes_SOLF0:USTF0_20250818
["timestamp","ask_amount","ask_price","bid_price","bid_amount"]
[1755538904294,7.18035461,185.38,185.32,0.03742629]
[1755538904492,3.11,185.35,185.32,0.03742629]
[1755538904696,3.11,185.38,185.32,0.03742629]
[1755538904896,7.67175342,185.37,185.32,0.03742629]
[1755538905089,7.67175342,185.36,185.32,0.03742629]
[1755538905292,3.11,185.36,185.32,0.03742629]
[1755538905903,3.11,185.34,185.32,0.03742629]
[1755538908700,3.11,185.39,185.32,0.03742629]
[1755538908899,7.15104418,185.38,185.32,0.03742629]
[1755538909106,3.11,185.35,185.32,0.03742629]
[1755538909500,3.11,185.39,185.32,0.03742629]
[1755538909698,7.15105048,185.38,185.32,0.03742629]
[1755538909895,3.11,185.36,185.32,0.03742629]
[1755538910204,3.11,185.34,185.32,0.03742629]
[1755538910401,7.64100928,185.33,185.32,0.03742629]
[1755538910797,4.53100928,185.33,185.32,0.03742629]
[1755538910992,4.5311995,185.33,185.32,0.03742629]
[1755538911200,56.06199326,185.4,185.32,0.03742629]
[1755538911498,3.11,185.33,185.32,0.03742629]
[1755538912301,52.98,185.38,185.32,0.03742629]
[1755538912509,2.98,185.36,185.32,0.03742629]
[1755538912710,2.98,185.36,185.32,3.07742629]
[1755538912902,50.0,185.38,185.32,3.07742629]
[1755538913105,4.53078199,185.37,185.32,3.07742629]
[1755538913401,4.53078199,185.36,185.32,0.03742629]
[1755538913606,2.98,185.4,185.33,3.04]
[1755538913906,7.1507263,185.39,185.32,0.03742629]
[1755538914110,4.53051221,185.38,185.32,0.03742629]
[1755538914310,7.51051221,185.37,185.32,0.03742629]
[1755538914505,4.53051221,185.36,185.32,0.03742629]
[1755538915909,4.53051221,185.36,185.32,3.07742629]
[1755538916111,2.98,185.37,185.32,3.07742629]
[1755538916705,2.98,185.37,185.33,3.04]
[1755538917605,52.98,185.4,185.32,0.03742629]
[1755538917806,13.21299185,185.39,185.32,0.03742629]
[1755538918006,2.98,185.33,185.32,0.03742629]
[1755538918208,7.51068778,185.33,185.32,0.03742629]
[1755538919004,7.51068778,185.33,185.23,3.04]
[1755538919203,4.53068778,185.32,185.23,3.04]
[1755538919611,2.98,185.31,185.23,3.04]
[1755538919806,4.53068778,185.3,185.23,3.04]
[1755538920414,3.01630592,185.28,185.23,3.04]
[1755538921201,0.03630592,185.28,185.19,3.04]
[1755538921407,0.03630592,185.28,185.2,5.3958]
[1755538921611,0.03630592,185.28,185.21,3.04]
[1755538922112,0.03630592,185.28,185.18,362.58]
[1755538922113,0.03630592,185.28,185.19,3.04]
[1755538923314,0.03630592,185.28,185.23,5.3951]
[1755538923610,0.03630592,185.28,185.26,3.04]
[1755538923803,0.03630592,185.28,185.27,3.04]
[1755538924012,50.0,185.35,185.27,3.04]
[1755538924319,16.19,185.43,185.27,3.04]
[1755538924320,4.53919773,185.34,185.27,3.04]
[1755538924515,2.98,185.41,185.3,5.393]
[1755538924814,7.16208224,185.4,185.31,3.04]
[1755538925017,2.98,185.45,185.34,5.3918]
[1755538925319,4.53387657,185.44,185.35,3.04]
[1755538925617,4.53387657,185.43,185.35,8.92012338]
[1755538925819,2.98,185.45,185.36,5.3913]
[1755538926009,4.53373864,185.44,185.36,3.04]
[1755538926208,138.38,185.48,185.36,3.04]
[1755538926515,7.1515869,185.47,185.39,3.07816046]
[1755538926713,4.53091322,185.46,185.39,3.07816046]
[1755538926908,4.53091322,185.45,185.39,3.07816046]
[1755538927111,2.98,185.47,185.39,3.07816046]
[1755538927310,4.52769782,185.46,185.39,3.07816046]
[1755538927515,4.52769782,185.45,185.39,3.07816046]
[1755538927708,2.98,185.47,185.39,3.07816046]
[1755538927910,4.52797495,185.46,185.39,3.07816046]
[1755538928109,4.52797495,185.45,185.39,0.03816046]
[1755538928315,2.98,185.42,185.39,0.03816046]
[1755538928707,2.98,185.41,185.39,0.03816046]
[1755538928907,4.52730105,185.4,185.39,0.03816046]
[1755538929112,2.98,185.45,185.39,0.03816046]
[1755538929417,2.98,185.43,185.39,0.03816046]
[1755538929613,2.98,185.47,185.39,3.07816046]
[1755538929921,4.52547981,185.46,185.39,3.07816046]
[1755538930213,2.98,185.47,185.39,3.07816046]
[1755538930812,2.98,185.45,185.39,0.03816046]
[1755538931112,2.98,185.43,185.39,0.03816046]
[1755538933917,5.88012338,185.44,185.39,0.03816046]
[1755538934116,2.98,185.42,185.39,0.03816046]
[1755538934318,4.52151,185.41,185.39,0.03816046]
[1755538934519,2.98,185.39,185.25,3.04]
[1755538934919,4.52223965,185.38,185.25,3.04]
[1755538935118,4.52223965,185.37,185.25,3.04]
[1755538935318,2.98,185.39,185.25,3.04]
[1755538935516,4.52251385,185.38,185.25,3.04]
[1755538935720,2.98,185.43,185.28,5.88012338]
[1755538935923,2.98,185.43,185.33,3.04]
[1755538936216,2.98,185.43,185.33,8.4321]
[1755538936419,0.03903516,185.4,185.33,3.04]
[1755538937722,0.03903516,185.4,185.33,8.4321]
[1755538937917,0.03903516,185.4,185.33,3.04]
[1755538938117,0.03903516,185.4,185.29,5.3933]
[1755538938118,7.46527829,185.39,185.29,5.3933]
[1755538938322,4.48562447,185.38,185.28,3.04]
[1755538938528,2.98,185.39,185.28,3.04]
[1755538938820,0.03526433,185.35,185.28,3.04]
[1755538939022,3.01526433,185.35,185.24,3.04]
[1755538939221,3.01526433,185.35,185.2,3.04]
[1755538939419,7.02524549,185.34,185.2,8.4358]
[1755538939621,2.98,185.32,185.2,8.4358]
[1755538939819,0.03541596,185.29,185.2,8.4358]
[1755538940128,2.98,185.28,185.2,3.04]
[1755538940316,2.98,185.28,185.16,3.04]
[1755538940518,4.48693428,185.27,185.16,3.04]
[1755538940718,2.98,185.28,185.16,3.04]
[1755538940918,4.48698592,185.27,185.16,3.04]
[1755538941115,0.03950763,185.23,185.16,3.04]
[1755538941321,0.03950763,185.23,185.12,3.04]
[1755538941722,2.98,185.24,185.12,3.04]
[1755538942026,0.04139864,185.19,185.14,5.3977]
[1755538942224,0.04139864,185.19,185.11,123.45883394]
[1755538942525,0.04139864,185.19,185.12,3.13]
[1755538942719,0.04139864,185.19,185.15,5.88012338]
[1755538943226,0.04139864,185.19,185.18,3.13]
[1755538943619,0.04139864,185.19,185.15,5.88012338]
[1755538943815,0.04139864,185.19,185.16,3.13]
[1755538944021,0.04139864,185.19,185.18,3.13]
[1755538944620,0.04139864,185.19,185.16,3.13]
[1755538945224,0.04139864,185.19,185.15,5.88012338]
[1755538945518,2.88,185.29,185.18,3.13]
[1755538946420,2.88,185.29,185.19,5.88012338]
[1755538946728,2.88,185.33,185.24,5.3948]
[1755538947632,2.88,185.33,185.27,0.04106955]
[1755538949129,2.88,185.36,185.27,0.04106955]
[1755538949425,2.88,185.34,185.27,0.04106955]
[1755538949618,2.88,185.32,185.27,0.04106955]
[1755538949818,2.88,185.3,185.27,0.04106955]
[1755538950124,2.88,185.29,185.27,0.04106955]
[1755538950527,2.88,185.34,185.27,0.04106955]
[1755538950728,4.47481923,185.33,185.27,0.04106955]
[1755538950929,2.88,185.34,185.27,0.04106955]
[1755538953633,365.28,185.39,185.27,3.17106955]
[1755538954133,365.28,185.39,185.27,3.13]
[1755538954434,365.28,185.39,185.31,0.03733912]
[1755538961834,57.35268387,185.38,185.31,0.03733912]
[1755538962041,2.88,185.36,185.31,0.03733912]
[1755538962342,2.88,185.32,185.31,0.03733912]
[1755538964435,141.12,185.32,185.31,0.03733912]
[1755538965535,50.0,185.31,185.19,3.13]
[1755538965735,2.88,185.3,185.19,3.13]
[1755538967839,0.03494164,185.26,185.19,3.13]
[1755538970944,0.03494164,185.26,185.24,3.13]
[1755538971144,0.03494164,185.26,185.25,3.13]
[1755538971843,0.03494164,185.26,185.25,8.5246]
[1755538972346,0.03494164,185.26,185.25,3.13]
[1755538973242,0.03494164,185.26,185.22,3.07]
[1755538973547,0.03494164,185.26,185.23,3.07]
[1755538973746,0.03494164,185.26,185.21,5.88012338]
[1755538973747,0.03494164,185.26,185.21,3.07]
[1755538973941,0.03494164,185.26,185.17,8.95012338]
[1755538974343,0.03494164,185.26,185.17,14.34692338]
[1755538974543,0.03494164,185.26,185.17,8.95012338]
[1755538974944,0.03494164,185.26,185.18,5.3964]
[1755538975639,0.03494164,185.26,185.17,5.88012338]
[1755538975839,0.03494164,185.26,185.18,3.07]
[1755538976340,0.03494164,185.26,185.2,5.3959]
[1755538976751,0.03494164,185.26,185.18,8.4664]
[1755538977051,0.03494164,185.26,185.18,3.07]
[1755538979748,0.03494164,185.26,185.13,117.37108547]
[1755538979749,7.38077298,185.25,185.13,120.44108547]
[1755538979949,2.86,185.25,185.13,120.44108547]
[1755538980338,7.38103713,185.24,185.13,120.44108547]
[1755538980544,0.03440598,185.21,185.13,117.37108547]
[1755538981046,2.86,185.2,185.13,117.37108547]
[1755538982042,2.86,185.2,185.1,1.42007]
[1755538982441,52.86,185.25,185.12,3.07]
[1755538982642,4.52208666,185.24,185.12,8.4683]
[1755538982848,4.52208666,185.23,185.12,3.07]
[1755538983050,2.86,185.25,185.12,3.07]
[1755538983352,4.52383486,185.24,185.13,5.3979]
[1755538983553,7.38383486,185.23,185.12,3.07]
[1755538983747,2.86,185.21,185.12,3.07]
[1755538983944,4.52383486,185.2,185.12,3.07]
[1755538984142,2.86,185.21,185.12,3.07]
[1755538984349,4.52248828,185.2,185.12,8.4683]
[1755538984647,2.86,185.21,185.12,3.07]
[1755538984851,2.86,185.25,185.12,3.07]
[1755538985052,50.0,185.32,185.17,3.07]
[1755538985254,7.08536379,185.31,185.17,3.07]
[1755538985555,0.0347377,185.2,185.18,3.07]
[1755538985743,0.0347377,185.2,185.17,5.3967]
[1755538985744,2.86,185.26,185.16,3.07]
[1755538986145,4.52119742,185.25,185.16,3.07]
[1755538986352,2.86,185.26,185.16,3.07]
[1755538986547,2.86,185.31,185.16,3.07]
[1755538986753,7.08578005,185.3,185.16,3.07]
[1755538986954,7.08578005,185.29,185.16,3.07]
[1755538987154,7.38118424,185.28,185.18,5.3964]
[1755538987347,4.52118424,185.27,185.18,5.3964]
[1755538987548,0.03578,185.24,185.18,5.88012338]
[1755538987953,0.03578,185.24,185.23,3.07]
[1755538988354,0.03578,185.24,185.23,8.4651]
[1755538988956,0.03578,185.24,185.23,3.07]
[1755538990553,0.03578,185.24,185.17,3.07]
[1755538991052,2.86,185.27,185.17,3.07]
[1755538992461,4.52204664,185.26,185.15,3.07]
[1755538992665,0.03463501,185.24,185.15,3.07]
[1755538992961,2.86,185.23,185.15,3.07]
[1755538994359,2.86,185.23,185.1,1.42007]
[1755538994360,2.86,185.23,185.11,3.07]
[1755538994857,0.03463501,185.24,185.11,3.07]
[1755538994858,2.86,185.21,185.11,3.07]
[1755538995247,2.86,185.21,185.11,8.4684]
[1755538995653,2.86,185.21,185.11,3.07]
[1755538995957,2.86,185.21,185.11,8.4686]
[1755538996259,2.86,185.21,185.11,3.07]
[1755538996460,2.86,185.21,185.11,8.4686]
[1755538996661,2.86,185.3,185.13,5.88012338]
[1755538996961,2.86,185.28,185.14,3.07]
[1755538997162,2.86,185.26,185.14,3.07]
[1755538997459,2.86,185.24,185.14,3.07]
[1755538998858,2.86,185.24,185.14,8.4677]
[1755538999365,2.86,185.24,185.14,3.07]
[1755538999552,4.50448137,185.23,185.12,3.07]
[1755538999752,2.86,185.24,185.12,3.07]
[1755538999954,4.50457342,185.23,185.12,8.4681]
[1755539000157,2.86,185.24,185.12,3.07]
[1755539000361,0.03440528,185.2,185.12,3.07]
[1755539000860,0.03440528,185.2,185.11,5.88012338]
[1755539001060,0.03440528,185.2,185.12,3.07]
[1755539001260,0.03440528,185.2,185.12,8.95012338]
[1755539001462,0.03440528,185.2,185.14,5.3977]
[1755539001763,0.03440528,185.2,185.12,3.07]
[1755539002068,3.01,185.19,185.12,3.07]
[1755539003963,0.03440528,185.2,185.12,3.07]
[1755539004468,0.03440528,185.2,185.16,2.97]
[1755539004664,0.03440528,185.2,185.15,5.3974]
[1755539004860,0.03440528,185.2,185.17,2.97]
[1755539005362,0.03440528,185.2,185.13,2.97]
[1755539009468,0.03440528,185.2,185.12,2.97]
[1755539010657,0.03440528,185.2,185.12,8.3681]
[1755539010864,0.03440528,185.2,185.12,5.88012338]
[1755539011063,0.03440528,185.2,185.13,2.97]
[1755539011259,0.03440528,185.2,185.16,2.97]
[1755539013170,0.03440528,185.2,185.13,2.97]
[1755539013666,0.03440528,185.2,185.17,2.97]
[1755539013868,0.03440528,185.2,185.16,5.88012338]
[1755539014071,0.03440528,185.2,185.19,8.3663]
[1755539014969,0.03440528,185.2,185.16,5.88012338]
[1755539015170,0.03440528,185.2,185.18,2.97]
[1755539015664,0.03440528,185.2,185.16,5.88012338]
[1755539015871,0.03440528,185.2,185.19,2.97]
[1755539017075,0.03440528,185.2,185.16,2.97]
[1755539017558,0.03440528,185.2,185.17,5.3967]
[1755539017763,0.03440528,185.2,185.18,2.97]
[1755539020076,0.03440528,185.2,185.18,8.3665]
[1755539020674,0.03440528,185.2,185.19,8.3663]
[1755539023675,0.03440528,185.2,185.19,12.10450184]
[1755539024770,3.01,185.27,185.23,5.3951]
[1755539024966,3.01,185.27,185.19,6.70820184]
[1755539025572,3.01,185.27,185.23,5.3949]
[1755539026272,3.01,185.27,185.23,5.43437772]
[1755539026681,3.01,185.27,185.24,5.3948]
[1755539026884,366.51820184,185.34,185.24,5.3948]
[1755539026885,3.01,185.31,185.24,5.3948]
[1755539027181,4.51658148,185.3,185.24,5.3948]
[1755539027380,3.01,185.31,185.24,5.3948]
[1755539027578,4.51637051,185.3,185.25,0.0356]
[1755539027775,3.01,185.29,185.25,0.0356]
[1755539028379,3.01,185.33,185.25,0.0356]
[1755539028579,3.01,185.31,185.25,0.0356]
[1755539028785,4.50922821,185.3,185.25,0.0356]
[1755539029085,3.01,185.28,185.25,0.0356]
[1755539029284,366.51820184,185.34,185.25,0.0356]
[1755539029481,3.01,185.27,185.25,0.0356]
[1755539030181,3.01,185.33,185.25,0.0356]
[1755539030379,4.50823811,185.32,185.25,0.0356]
[1755539030681,3.01,185.33,185.26,5.3941]
[1755539030877,4.5079473,185.32,185.26,5.3941]
[1755539031182,3.01,185.33,185.27,5.3938]
[1755539032176,3.01,185.33,185.28,5.3937]
[1755539032379,2.89,185.33,185.28,8.4937]
[1755539032581,2.89,185.32,185.28,3.1]
[1755539033079,2.89,185.39,185.28,3.1]
[1755539033280,2.89,185.37,185.28,6.87449085]
[1755539033580,4.50168371,185.36,185.3,5.393]
[1755539033777,2.89,185.37,185.28,6.83820184]
[1755539033976,4.50167702,185.36,185.31,0.03814592]
[1755539034179,2.89,185.37,185.31,0.03814592]
[1755539035478,2.89,185.37,185.31,5.43074592]
[1755539035783,2.89,185.37,185.31,3.13814592]
[1755539035983,2.89,185.37,185.31,6.87634776]
[1755539036182,2.89,185.37,185.32,8.4923]
[1755539036385,2.89,185.4,185.32,5.3923]
[1755539036680,2.89,185.4,185.31,0.03814592]
[1755539036878,2.89,185.38,185.31,0.03814592]
[1755539039079,2.89,185.38,185.28,5.3937]
[1755539039080,2.89,185.34,185.23,3.1]
[1755539039286,2.89,185.34,185.23,8.495]
[1755539040287,0.03582885,185.3,185.23,3.1]
[1755539040485,2.92582885,185.3,185.23,3.1]
[1755539041084,2.92582885,185.3,185.21,5.3956]
[1755539041387,2.92582885,185.3,185.2,6.83820184]
[1755539041876,2.92582885,185.3,185.21,5.3955]
[1755539042075,2.92582885,185.3,185.2,6.83820184]
[1755539042281,3.73820184,185.29,185.17,6.83820184]
[1755539042586,2.89,185.27,185.17,3.1]
[1755539042987,0.03519477,185.24,185.17,3.1]
[1755539043188,2.89,185.23,185.17,3.1]
[1755539047488,2.89,185.23,185.17,8.4968]
[1755539047878,2.89,185.23,185.16,5.3971]
[1755539048191,2.89,185.23,185.15,3.1]
[1755539048790,0.03519477,185.24,185.18,3.1]
[1755539048988,0.03519477,185.24,185.2,3.1]
[1755539049187,2.89,185.28,185.21,3.1]
[1755539049694,0.03587718,185.24,185.22,3.1]
[1755539050494,2.89,185.32,185.23,6.83820184]
[1755539050683,2.89,185.32,185.13,366.29820184]
[1755539050684,2.89,185.32,185.28,3.1]
[1755539051489,2.89,185.32,185.23,3.1]
[1755539051902,2.89,185.32,185.28,0.03698702]
[1755539052297,3.73820184,185.36,185.28,0.03698702]
[1755539052600,144.08199326,185.38,185.28,0.03698702]
[1755539052601,2.89,185.29,185.28,0.03698702]
[1755539053102,2.89,185.29,185.2,3.1]
[1755539053695,2.89,185.29,185.18,138.02]
[1755539053696,0.03613011,185.3,185.23,3.1]
[1755539054099,2.89,185.33,185.23,8.4951]
[1755539054299,4.50162877,185.32,185.23,8.4951]
[1755539054497,0.03832167,185.28,185.23,3.1]
[1755539054699,2.89,185.27,185.2,3.73820184]
[1755539055099,2.89,185.27,185.2,9.13400184]
[1755539055502,2.89,185.27,185.2,3.73820184]
[1755539056408,6.62820184,185.27,185.18,138.02]
[1755539056608,2.89,185.26,185.15,3.1]
[1755539056811,4.50549053,185.25,185.15,3.1]
[1755539057008,2.89,185.23,185.15,3.1]
[1755539057505,50.0,185.31,185.13,362.56]
[1755539057506,2.89,185.21,185.13,362.56]
[1755539057704,2.89,185.21,185.11,6.83820184]
[1755539057904,2.89,185.21,185.12,5.3983]
[1755539058408,0.040779,185.18,185.12,5.3983]
[1755539058608,0.040779,185.18,185.11,6.83820184]
[1755539059806,0.040779,185.18,185.11,3.1]
[1755539061211,0.040779,185.18,185.1,1.42007]
[1755539061613,0.040779,185.18,185.11,3.1]
[1755539063311,0.040779,185.18,185.12,5.3983]
[1755539064611,0.040779,185.18,185.11,3.1]
[1755539065215,0.040779,185.18,185.11,8.4986]
[1755539065510,0.040779,185.18,185.11,3.1]
[1755539065915,0.040779,185.18,185.12,5.3981]
[1755539066207,0.040779,185.18,185.11,3.1]
[1755539066611,0.040779,185.18,185.14,3.01]
[1755539067707,2.960779,185.18,185.14,3.01]
[1755539067907,0.040779,185.18,185.15,3.01]
[1755539068317,0.040779,185.18,185.12,3.01]
[1755539068920,0.040779,185.18,185.13,5.398]
[1755539069118,0.040779,185.18,185.14,3.01]
[1755539069416,0.040779,185.18,185.15,3.01]
[1755539070715,0.040779,185.18,185.14,3.73820184]
[1755539070921,50.0,185.26,185.1,1.42007]
[1755539070922,2.92,185.26,185.17,6.74820184]
[1755539071219,2.92,185.26,185.18,5.3964]
[1755539071416,2.92,185.26,185.17,6.74820184]
[1755539071618,2.92,185.26,185.17,3.01]
[1755539072307,2.92,185.26,185.2,0.03478968]
[1755539077513,2.92,185.26,185.2,5.43078968]
[1755539077719,2.92,185.3,185.2,3.04478968]
[1755539078125,2.92,185.3,185.22,5.3954]
[1755539078320,2.92,185.3,185.2,3.04478968]
[1755539078526,2.92,185.3,185.2,3.01]
[1755539079026,2.92,185.3,185.23,0.04035675]
[1755539079427,6.65820184,185.3,185.23,0.04035675]
[1755539079623,4.53687878,185.29,185.23,0.04035675]
[1755539079825,4.53721382,185.28,185.23,0.04035675]
[1755539080122,2.92,185.24,185.23,0.04035675]
[1755539080622,3.73820184,185.3,185.23,0.04035675]
[1755539080830,2.92,185.26,185.23,0.04035675]
[1755539081126,2.92,185.25,185.23,0.04035675]
[1755539081322,50.0,185.29,185.23,0.04035675]
[1755539081524,2.92,185.24,185.23,0.04035675]
[1755539085534,2.92,185.24,185.1,1.42007]
[1755539085723,2.92,185.2,185.1,1.42007]
[1755539085927,4.54999967,185.19,185.1,1.42007]
[1755539086132,7.46944171,185.18,185.1,1.42007]
[1755539086324,2.92,185.18,185.1,1.42007]
[1755539086934,0.03825367,185.16,185.1,1.42007]
[1755539091738,0.03825367,185.16,185.12,3.01]
[1755539091938,0.03825367,185.16,185.1,1.42007]
[1755539092139,0.03825367,185.16,185.14,2.95]
[1755539092533,0.03825367,185.16,185.1,1.42007]
[1755539092842,0.03825367,185.16,185.12,2.95]
[1755539093036,0.03825367,185.16,185.14,2.95]
[1755539093238,0.03825367,185.16,185.15,2.95]
[1755539093832,0.03825367,185.16,185.1,5.15827184]
[1755539094034,3.11825367,185.16,185.12,2.95]
[1755539094338,3.08,185.14,185.1,1.42007]
[1755539094735,0.03825367,185.16,185.11,2.95]
[1755539095038,3.08,185.15,185.11,2.95]
[1755539095235,3.08,185.14,185.1,1.42007]
[1755539095436,3.08,185.14,185.1,4.37007]
[1755539095641,0.03825367,185.16,185.1,1.42007]
[1755539096037,3.08,185.13,185.1,1.42007]
[1755539096238,0.03825367,185.16,185.1,1.42007]
[1755539096438,3.08,185.11,185.1,1.42007]
[1755539099143,3.08,185.11,185.01,6.68820184]
[1755539099443,3.08,185.09,184.99,2.95]
[1755539099841,0.04119084,185.06,184.99,2.95]
[1755539100351,3.08,185.01,184.9,5.4046]
[1755539100645,3.08,185.01,184.9,8.3546]
[1755539100837,3.08,185.01,184.9,6.68820184]
[1755539101038,0.03755229,184.97,184.92,2.95]
[1755539101349,0.03755229,184.97,184.91,2.95]
[1755539101746,0.03755229,184.97,184.94,2.95]
[1755539101951,0.03755229,184.97,184.93,3.73820184]
[1755539102142,0.03755229,184.97,184.95,2.95]
[1755539102742,0.03755229,184.97,184.93,2.95]
[1755539103048,0.03755229,184.97,184.9,2.95]
[1755539104746,0.03755229,184.97,184.9,8.3545]
[1755539104947,0.03755229,184.97,184.9,2.95]
[1755539105146,0.03755229,184.97,184.91,8.3545]
[1755539105348,0.03755229,184.97,184.91,2.95]
[1755539106948,0.03755229,184.97,184.91,8.3544]
[1755539107153,0.03755229,184.97,184.91,2.95]
[1755539108354,0.03755229,184.97,184.87,8.85768108]
[1755539108355,3.08,184.96,184.87,8.85768108]
[1755539108653,3.08,184.96,184.87,2.95]
[1755539109345,0.03755229,184.97,184.91,2.95]
[1755539109751,137.96,185.08,184.96,5.403]
[1755539109955,3.08,185.04,184.96,2.95]
[1755539110555,3.08,185.01,184.92,2.95]
[1755539111157,0.038097,185.02,184.92,8.85768108]
[1755539111454,0.038097,185.02,184.93,2.95]
[1755539111959,0.038097,185.02,184.96,5.4029]
[1755539112362,0.038097,185.02,184.93,2.95]
[1755539112553,0.038097,185.02,184.96,5.90768108]
[1755539112754,0.038097,185.02,184.97,2.95]
[1755539112960,3.08,185.09,184.97,2.95]
[1755539113362,3.08,185.13,185.01,2.95]
[1755539113961,3.08,185.13,184.94,137.94]
[1755539113962,3.08,185.17,185.05,2.95]
[1755539114465,3.08,185.17,185.04,5.90768108]
[1755539114466,3.08,185.17,185.11,5.3984]
[1755539114757,3.08,185.27,185.09,2.98737596]
[1755539114955,3.08,185.25,185.13,2.95]
[1755539115165,3.08,185.29,185.17,2.95]
[1755539115362,3.08,185.27,185.12,2.95]
[1755539115565,3.08,185.27,185.17,0.03918726]
[1755539115963,5.90768108,185.24,185.17,0.03918726]
[1755539116166,3.08,185.23,185.17,0.03918726]
[1755539116371,3.08,185.23,185.12,8.3483]
[1755539116869,3.08,185.23,185.18,0.03478121]
[1755539117069,3.08,185.27,185.18,0.03478121]
[1755539117266,3.08,185.25,185.13,2.95]
[1755539117470,4.53429694,185.24,185.09,146.75768108]
[1755539117673,3.08,185.23,185.09,8.85768108]
[1755539117869,4.53471518,185.22,185.15,0.0389356]
[1755539118066,4.53471518,185.21,185.15,0.0389356]
[1755539118271,7.5975307,185.2,185.09,2.95]
[1755539118467,3.08,185.2,185.09,2.95]
[1755539118670,3.08,185.2,185.16,0.03777848]
[1755539119472,5.90768108,185.28,185.16,0.03777848]
[1755539119473,3.08,185.19,185.16,0.03777848]
[1755539119874,3.08,185.19,185.12,2.95]
[1755539120074,3.08,185.19,185.07,2.95]
[1755539120276,0.03806467,185.2,185.07,2.95]
[1755539120277,3.08,185.17,185.07,2.95]
[1755539120675,3.08,185.17,185.02,2.95]
[1755539121182,3.08,185.15,185.02,2.95]
[1755539121677,0.03584879,185.1,185.02,2.95]
[1755539122183,0.03584879,185.1,185.04,5.4007]
[1755539122375,0.03584879,185.1,185.05,5.90768108]
[1755539122566,0.03584879,185.1,185.08,3.13]
[1755539122771,0.03584879,185.1,185.09,3.13]
[1755539124276,0.03584879,185.1,185.06,3.13]
[1755539124777,0.03584879,185.1,185.02,3.13]
[1755539124977,3.07584879,185.1,185.02,3.13]
[1755539128580,0.03584879,185.1,185.02,3.13]
[1755539129180,0.03584879,185.1,185.04,5.4007]
[1755539129381,0.03584879,185.1,185.02,3.13]
[1755539129876,0.03584879,185.1,185.08,3.13]
[1755539130382,3.04,185.14,185.07,5.3998]
[1755539130674,0.03729687,185.11,185.08,3.13]
[1755539130876,0.03729687,185.11,185.09,3.13]
[1755539131679,0.03729687,185.11,185.07,3.13]
[1755539132684,0.03729687,185.11,185.05,3.13]
[1755539133078,0.03729687,185.11,185.07,3.13]
[1755539133487,0.03729687,185.11,185.08,3.13]
[1755539134777,0.03729687,185.11,185.05,137.76]
[1755539134977,0.03729687,185.11,185.04,5.90768108]
[1755539135180,0.03729687,185.11,185.05,137.76]
[1755539135379,0.03729687,185.11,185.1,3.13]
[1755539135581,3.04,185.24,185.1,3.13]
[1755539135783,4.53692669,185.23,185.14,3.13]
[1755539135983,3.04,185.22,185.14,3.13]
[1755539136778,3.04,185.32,185.18,5.3965]
[1755539136975,3.04,185.3,185.16,0.03530322]
[1755539137284,3.04,185.3,185.09,362.96]
[1755539137285,5.90768108,185.25,185.1,3.13]
[1755539137580,3.04,185.21,185.06,140.87]
[1755539137785,3.04,185.19,185.09,5.3989]
[1755539137981,3.04,185.19,185.07,3.13]
[1755539138294,3.04,185.19,185.08,3.13]
[1755539138988,0.03954218,185.15,185.11,9.03768108]
[1755539139285,0.03954218,185.15,185.12,3.13]
[1755539140580,0.03954218,185.15,185.11,11.30628108]
[1755539140777,0.03954218,185.15,185.12,3.13]